[Event "SS Manhem Chess Week 2019 GM and IM tournaments"]
[Site "Molnlycke kulturhus, Biblioteksgatan 2, Molnlycke, Sweden"]
[Date "2019.08.10"]
[Round "1.10"]
[White "Pham, Bich Ngoc"]
[Black "Rydstrom, Tom"]
[Result "0-1"]
[TimeControl "90 minutes for 40 moves + 30 minutes for the rest of the game + 30 seconds per move from move one."]
[WhiteTitle "WIM"]
[BlackTitle "FM"]
[WhiteFideId "12401285"]
[BlackFideId "1714830"]
[WhiteElo "2176"]
[BlackElo "2314"]

1. c4 {[%clk 01:27:49]} {[%emt 00:03:10]} e5 {[%clk 01:29:21]} {[%emt
00:01:40]} 2. g3 {[%clk 01:28:01]} {[%emt 00:00:17]} Nc6 {[%clk 01:29:30]}
{[%emt 00:00:21]} 3. Bg2 {[%clk 01:28:19]} {[%emt 00:00:11]} f5 {[%clk
01:29:26]} {[%emt 00:00:35]} 4. Nc3 {[%clk 01:28:08]} {[%emt 00:00:41]} Nf6
{[%clk 01:29:51]} {[%emt 00:00:06]} 5. d3 {[%clk 01:26:01]} {[%emt 00:02:36]}
Bc5 {[%clk 01:29:14]} {[%emt 00:01:08]} 6. e3 {[%clk 01:24:16]} {[%emt
00:02:15]} a6 {[%clk 01:26:13]} {[%emt 00:03:31]} 7. Nge2 {[%clk 01:24:12]}
{[%emt 00:00:34]} d6 {[%clk 01:26:25]} {[%emt 00:00:18]} 8. d4 {[%clk
01:23:01]} {[%emt 00:01:40]} Ba7 {[%clk 01:26:43]} {[%emt 00:00:13]} 9. Bxc6+
{[%clk 01:22:55]} {[%emt 00:00:35]} bxc6 {[%clk 01:27:07]} {[%emt 00:00:06]} 10.
dxe5 {[%clk 01:23:19]} {[%emt 00:00:06]} dxe5 {[%clk 01:26:41]} {[%emt
00:00:55]} 11. Qxd8+ {[%clk 01:23:20]} {[%emt 00:00:29]} Kxd8 {[%clk 01:27:08]}
{[%emt 00:00:03]} 12. b3 {[%clk 01:20:34]} {[%emt 00:03:16]} Be6 {[%clk
01:15:48]} {[%emt 00:11:51]} 13. Ba3 {[%clk 01:17:04]} {[%emt 00:04:01]} Kc8
{[%clk 01:14:26]} {[%emt 00:01:51]} 14. O-O {[%clk 01:06:57]} {[%emt 00:10:36]}
h5 {[%clk 01:11:50]} {[%emt 00:03:07]} 15. h4 {[%clk 01:05:44]} {[%emt
00:01:42]} Kb7 {[%clk 01:08:34]} {[%emt 00:03:46]} 16. Rfd1 {[%clk 01:00:34]}
{[%emt 00:05:40]} Rae8 {[%clk 01:01:10]} {[%emt 00:07:56]} 17. Rd3 {[%clk
00:55:27]} {[%emt 00:05:37]} Ng4 {[%clk 00:50:17]} {[%emt 00:11:23]} 18. c5
{[%clk 00:54:08]} {[%emt 00:01:49]} g5 {[%clk 00:49:50]} {[%emt 00:00:57]} 19.
hxg5 {[%clk 00:52:27]} {[%emt 00:02:11]} h4 {[%clk 00:49:26]} {[%emt 00:00:55]}
20. gxh4 {[%clk 00:37:52]} {[%emt 00:15:04]} Rxh4 {[%clk 00:48:56]} {[%emt
00:01:00]} 21. Rad1 {[%clk 00:26:20]} {[%emt 00:12:03]} Reh8 {[%clk 00:45:21]}
{[%emt 00:04:05]} 22. Ng3 {[%clk 00:25:49]} {[%emt 00:01:01]} f4 {[%clk
00:42:59]} {[%emt 00:02:52]} 23. exf4 {[%clk 00:25:30]} {[%emt 00:00:49]} exf4
{[%clk 00:43:25]} {[%emt 00:00:04]} 24. Nf1 {[%clk 00:25:41]} {[%emt 00:00:18]}
Ne5 {[%clk 00:42:47]} {[%emt 00:01:08]} 25. Rd8 {[%clk 00:24:33]} {[%emt
00:01:39]} Rg4+ {[%clk 00:37:07]} {[%emt 00:06:10]} 26. Ng3 {[%clk 00:24:55]}
{[%emt 00:00:07]} Rxd8 {[%clk 00:37:25]} {[%emt 00:00:13]} 27. Rxd8 {[%clk
00:25:19]} {[%emt 00:00:05]} fxg3 {[%clk 00:37:51]} {[%emt 00:00:05]} 28. Kg2
{[%clk 00:22:04]} {[%emt 00:03:45]} gxf2+ {[%clk 00:38:16]} {[%emt 00:00:05]}
29. Kxf2 {[%clk 00:22:28]} {[%emt 00:00:05]} Rxg5 {[%clk 00:38:34]} {[%emt
00:00:12]} 30. Re8 {[%clk 00:21:11]} {[%emt 00:01:47]} Bd5 {[%clk 00:37:52]}
{[%emt 00:01:12]} 31. Nxd5 {[%clk 00:16:53]} {[%emt 00:04:49]} cxd5 {[%clk
00:38:09]} {[%emt 00:00:13]} 32. Ke3 {[%clk 00:17:17]} {[%emt 00:00:05]} Nc6
{[%clk 00:38:06]} {[%emt 00:00:33]} 33. Kf4 {[%clk 00:16:47]} {[%emt 00:01:01]}
Rg2 {[%clk 00:38:29]} {[%emt 00:00:07]} 0-1

[Event "SS Manhem Chess Week 2019 GM and IM tournaments"]
[Site "Molnlycke kulturhus, Biblioteksgatan 2, Molnlycke, Sweden"]
[Date "2019.08.11"]
[Round "2.2"]
[White "Blomqvist, Erik"]
[Black "Vypkhaniuk, Ihor"]
[Result "1/2-1/2"]
[TimeControl "90 minutes for 40 moves + 30 minutes for the rest of the game + 30 seconds per move from move one."]
[WhiteTitle "GM"]
[BlackTitle "FM"]
[WhiteFideId "1709437"]
[BlackFideId "14112256"]
[WhiteElo "2507"]
[BlackElo "2405"]

1. e4 {[%clk 01:30:55]} {[%emt 00:00:03]} c5 {[%clk 01:30:27]} {[%emt
00:00:34]} 2. Nf3 {[%clk 01:31:16]} {[%emt 00:00:08]} Nc6 {[%clk 01:30:48]}
{[%emt 00:00:09]} 3. Bb5 {[%clk 01:31:27]} {[%emt 00:00:18]} g6 {[%clk
01:30:56]} {[%emt 00:00:22]} 4. O-O {[%clk 01:31:08]} {[%emt 00:00:48]} Bg7
{[%clk 01:31:22]} {[%emt 00:00:05]} 5. Nc3 {[%clk 01:31:26]} {[%emt 00:00:12]}
e5 {[%clk 01:28:50]} {[%emt 00:03:02]} 6. d3 {[%clk 01:30:50]} {[%emt
00:01:06]} Nge7 {[%clk 01:22:24]} {[%emt 00:06:57]} 7. Bc4 {[%clk 01:30:39]}
{[%emt 00:00:40]} h6 {[%clk 01:20:43]} {[%emt 00:02:11]} 8. a3 {[%clk
01:30:35]} {[%emt 00:00:34]} O-O {[%clk 01:18:36]} {[%emt 00:02:37]} 9. b4
{[%clk 01:27:42]} {[%emt 00:03:22]} d6 {[%clk 00:58:57]} {[%emt 00:20:09]} 10.
bxc5 {[%clk 01:25:05]} {[%emt 00:03:08]} dxc5 {[%clk 00:58:02]} {[%emt
00:01:25]} 11. Rb1 {[%clk 01:25:02]} {[%emt 00:00:32]} b6 {[%clk 00:50:15]}
{[%emt 00:08:17]} 12. Nd5 {[%clk 01:21:28]} {[%emt 00:04:04]} Bb7 {[%clk
00:46:07]} {[%emt 00:04:39]} 13. Nxe7+ {[%clk 01:08:55]} {[%emt 00:13:03]} Nxe7
{[%clk 00:41:47]} {[%emt 00:04:50]} 14. h4 {[%clk 01:02:51]} {[%emt 00:06:34]}
Kh7 {[%clk 00:34:15]} {[%emt 00:08:02]} 15. h5 {[%clk 00:59:08]} {[%emt
00:04:13]} f5 {[%clk 00:32:57]} {[%emt 00:01:48]} 16. Nh4 {[%clk 00:51:39]}
{[%emt 00:07:59]} g5 {[%clk 00:25:56]} {[%emt 00:07:32]} 17. Nxf5 {[%clk
00:51:48]} {[%emt 00:00:20]} Nxf5 {[%clk 00:25:23]} {[%emt 00:01:03]} 18. exf5
{[%clk 00:52:12]} {[%emt 00:00:06]} Rxf5 {[%clk 00:24:08]} {[%emt 00:01:46]} 19.
a4 {[%clk 00:49:38]} {[%emt 00:03:04]} Qd6 {[%clk 00:14:23]} {[%emt 00:10:15]}
20. a5 {[%clk 00:45:15]} {[%emt 00:04:54]} Raf8 {[%clk 00:14:14]} {[%emt
00:00:39]} 21. Qg4 {[%clk 00:40:29]} {[%emt 00:05:16]} Kh8 {[%clk 00:14:09]}
{[%emt 00:00:35]} 22. Be3 {[%clk 00:37:57]} {[%emt 00:03:01]} Bc8 {[%clk
00:11:52]} {[%emt 00:02:46]} 23. Qe4 {[%clk 00:36:30]} {[%emt 00:01:57]} g4
{[%clk 00:10:31]} {[%emt 00:01:51]} 24. axb6 {[%clk 00:35:09]} {[%emt
00:01:52]} axb6 {[%clk 00:10:49]} {[%emt 00:00:12]} 25. Qxg4 {[%clk 00:32:23]}
{[%emt 00:03:15]} Rxf2 {[%clk 00:09:50]} {[%emt 00:01:29]} 26. Qe4 {[%clk
00:31:17]} {[%emt 00:01:35]} Rxf1+ {[%clk 00:07:05]} {[%emt 00:03:15]} 27. Rxf1
{[%clk 00:31:42]} {[%emt 00:00:05]} Rxf1+ {[%clk 00:07:32]} {[%emt 00:00:03]}
28. Kxf1 {[%clk 00:32:05]} {[%emt 00:00:07]} Bd7 {[%clk 00:03:55]} {[%emt
00:04:07]} 29. Kg1 {[%clk 00:17:18]} {[%emt 00:15:17]} b5 {[%clk 00:02:57]}
{[%emt 00:01:28]} 30. Bf7 {[%clk 00:12:40]} {[%emt 00:05:07]} Bc6 {[%clk
00:02:11]} {[%emt 00:01:17]} 31. Qf5 {[%clk 00:12:20]} {[%emt 00:00:49]} Bd7
{[%clk 00:01:42]} {[%emt 00:01:01]} 32. Qf2 {[%clk 00:09:12]} {[%emt 00:03:38]}
c4 {[%clk 00:02:01]} {[%emt 00:00:12]} 33. Bg6 {[%clk 00:07:42]} {[%emt
00:01:59]} cxd3 {[%clk 00:01:38]} {[%emt 00:00:54]} 34. cxd3 {[%clk 00:07:55]}
{[%emt 00:00:16]} Qf8 {[%clk 00:01:38]} {[%emt 00:00:31]} 35. Qa2 {[%clk
00:05:13]} {[%emt 00:03:12]} Be8 {[%clk 00:00:33]} {[%emt 00:01:34]} 36. Qd5
{[%clk 00:02:04]} {[%emt 00:03:39]} Bxg6 {[%clk 00:00:44]} {[%emt 00:00:20]} 37.
hxg6 {[%clk 00:02:32]} {[%emt 00:00:01]} Qe8 {[%clk 00:00:33]} {[%emt
00:00:42]} 38. Qd6 {[%clk 00:00:39]} {[%emt 00:02:23]} b4 {[%clk 00:00:36]}
{[%emt 00:00:26]} 39. Qxb4 {[%clk 00:00:46]} {[%emt 00:00:23]} Qxg6 {[%clk
00:01:00]} {[%emt 00:00:06]} 40. Qe4 {[%clk 00:01:06]} {[%emt 00:00:09]}
1/2-1/2

[Event "SS Manhem Chess Week 2019 GM and IM tournaments"]
[Site "Molnlycke kulturhus, Biblioteksgatan 2, Molnlycke, Sweden"]
[Date "2019.08.11"]
[Round "2.4"]
[White "Hector, Jonny"]
[Black "Haubro, Martin"]
[Result "1-0"]
[TimeControl "90 minutes for 40 moves + 30 minutes for the rest of the game + 30 seconds per move from move one."]
[WhiteTitle "GM"]
[BlackTitle "IM"]
[WhiteFideId "1700090"]
[BlackFideId "1414291"]
[WhiteElo "2493"]
[BlackElo "2374"]

1. e4 {[%clk 01:30:52]} {[%emt 00:00:05]} c5 {[%clk 01:30:58]} {[%emt
00:00:04]} 2. Nf3 {[%clk 01:31:14]} {[%emt 00:00:08]} d6 {[%clk 01:31:25]}
{[%emt 00:00:04]} 3. d4 {[%clk 01:31:37]} {[%emt 00:00:06]} cxd4 {[%clk
01:31:51]} {[%emt 00:00:04]} 4. Nxd4 {[%clk 01:32:00]} {[%emt 00:00:06]} Nf6
{[%clk 01:32:18]} {[%emt 00:00:04]} 5. Nc3 {[%clk 01:32:26]} {[%emt 00:00:05]}
Nc6 {[%clk 01:32:41]} {[%emt 00:00:07]} 6. Bg5 {[%clk 01:32:22]} {[%emt
00:00:32]} e6 {[%clk 01:33:03]} {[%emt 00:00:09]} 7. Qd2 {[%clk 01:32:37]}
{[%emt 00:00:13]} a6 {[%clk 01:31:32]} {[%emt 00:02:03]} 8. O-O-O {[%clk
01:32:33]} {[%emt 00:00:33]} Bd7 {[%clk 01:31:54]} {[%emt 00:00:08]} 9. f4
{[%clk 01:31:02]} {[%emt 00:01:59]} Be7 {[%clk 01:29:33]} {[%emt 00:02:53]} 10.
Nf3 {[%clk 01:30:31]} {[%emt 00:01:00]} b5 {[%clk 01:29:28]} {[%emt 00:00:36]}
11. Bxf6 {[%clk 01:30:30]} {[%emt 00:00:30]} gxf6 {[%clk 01:29:53]} {[%emt
00:00:05]} 12. Kb1 {[%clk 01:29:24]} {[%emt 00:01:36]} Qb6 {[%clk 01:30:18]}
{[%emt 00:00:07]} 13. Bd3 {[%clk 01:29:16]} {[%emt 00:00:36]} O-O-O {[%clk
01:30:32]} {[%emt 00:00:17]} 14. Rhe1 {[%clk 01:28:57]} {[%emt 00:00:48]} Kb7
{[%clk 01:29:14]} {[%emt 00:01:49]} 15. g4 {[%clk 01:07:49]} {[%emt 00:21:38]}
Rc8 {[%clk 01:19:56]} {[%emt 00:09:50]} 16. Nd5 {[%clk 00:56:59]} {[%emt
00:11:18]} exd5 {[%clk 01:16:30]} {[%emt 00:03:57]} 17. exd5 {[%clk 00:57:18]}
{[%emt 00:00:10]} Ne5 {[%clk 01:16:55]} {[%emt 00:00:06]} 18. fxe5 {[%clk
00:57:31]} {[%emt 00:00:16]} fxe5 {[%clk 01:17:21]} {[%emt 00:00:05]} 19. Bf5
{[%clk 00:52:48]} {[%emt 00:05:12]} Bxf5 {[%clk 01:08:41]} {[%emt 00:09:11]} 20.
gxf5 {[%clk 00:53:06]} {[%emt 00:00:11]} Rc4 {[%clk 01:05:10]} {[%emt
00:04:01]} 21. Qg2 {[%clk 00:47:45]} {[%emt 00:05:50]} f6 {[%clk 00:57:08]}
{[%emt 00:08:33]} 22. Nd2 {[%clk 00:44:02]} {[%emt 00:04:12]} Rh4 {[%clk
00:49:13]} {[%emt 00:08:25]} 23. Qg3 {[%clk 00:39:17]} {[%emt 00:05:15]} Rh5
{[%clk 00:47:09]} {[%emt 00:02:34]} 24. Ne4 {[%clk 00:34:55]} {[%emt 00:04:51]}
Rc8 {[%clk 00:45:07]} {[%emt 00:02:32]} 25. Rf1 {[%clk 00:33:37]} {[%emt
00:01:47]} Qd8 {[%clk 00:35:08]} {[%emt 00:10:29]} 26. h4 {[%clk 00:29:37]}
{[%emt 00:04:30]} Qg8 {[%clk 00:25:07]} {[%emt 00:10:33]} 27. Qh3 {[%clk
00:28:07]} {[%emt 00:01:58]} Rc4 {[%clk 00:25:33]} {[%emt 00:00:05]} 28. Rg1
{[%clk 00:23:13]} {[%emt 00:05:23]} Qf7 {[%clk 00:11:46]} {[%emt 00:14:18]} 29.
Qg4 {[%clk 00:21:54]} {[%emt 00:01:48]} Rh6 {[%clk 00:11:58]} {[%emt 00:00:19]}
30. b3 {[%clk 00:20:03]} {[%emt 00:02:20]} Rc7 {[%clk 00:11:49]} {[%emt
00:00:39]} 31. Ng3 {[%clk 00:15:21]} {[%emt 00:05:11]} Rc8 {[%clk 00:12:15]}
{[%emt 00:00:05]} 32. a4 {[%clk 00:14:38]} {[%emt 00:01:12]} Bd8 {[%clk
00:10:37]} {[%emt 00:02:09]} 33. axb5 {[%clk 00:13:58]} {[%emt 00:01:09]} Bb6
{[%clk 00:06:51]} {[%emt 00:04:16]} 34. bxa6+ {[%clk 00:11:41]} {[%emt
00:02:45]} Ka8 {[%clk 00:07:13]} {[%emt 00:00:10]} 35. Rg2 {[%clk 00:10:50]}
{[%emt 00:01:20]} Qc7 {[%clk 00:06:43]} {[%emt 00:01:01]} 36. Ne4 {[%clk
00:06:27]} {[%emt 00:04:52]} Bd4 {[%clk 00:04:35]} {[%emt 00:02:38]} 37. Qg7
{[%clk 00:05:47]} {[%emt 00:01:09]} Qxg7 {[%clk 00:04:05]} {[%emt 00:01:01]} 38.
Rxg7 {[%clk 00:06:09]} {[%emt 00:00:07]} Rxh4 {[%clk 00:04:31]} {[%emt
00:00:05]} 39. Nxd6 {[%clk 00:05:58]} {[%emt 00:00:40]} Rc5 {[%clk 00:04:57]}
{[%emt 00:00:05]} 40. Nc4 {[%clk 00:03:57]} {[%emt 00:02:31]} 1-0

[Event "SS Manhem Chess Week 2019 GM and IM tournaments"]
[Site "Molnlycke kulturhus, Biblioteksgatan 2, Molnlycke, Sweden"]
[Date "2019.08.11"]
[Round "2.6"]
[White "Malmstig, Erik"]
[Black "Fries-Nielsen, Jens Ove"]
[Result "0-1"]
[TimeControl "90 minutes for 40 moves + 30 minutes for the rest of the game + 30 seconds per move from move one."]
[WhiteTitle "FM"]
[BlackTitle "IM"]
[WhiteFideId "1702866"]
[BlackFideId "1400142"]
[WhiteElo "2335"]
[BlackElo "2351"]

1. d4 {[%clk 01:30:57]} {[%emt 00:00:02]} d5 {[%clk 01:29:13]} {[%emt
00:01:47]} 2. c4 {[%clk 01:31:12]} {[%emt 00:00:15]} e6 {[%clk 01:29:25]}
{[%emt 00:00:18]} 3. Nc3 {[%clk 01:31:29]} {[%emt 00:00:12]} Ne7 {[%clk
01:29:01]} {[%emt 00:00:54]} 4. Nf3 {[%clk 01:25:02]} {[%emt 00:06:57]} Nbc6
{[%clk 01:29:03]} {[%emt 00:00:28]} 5. Bg5 {[%clk 01:21:28]} {[%emt 00:04:04]}
f6 {[%clk 01:26:39]} {[%emt 00:02:55]} 6. cxd5 {[%clk 01:21:18]} {[%emt
00:00:40]} exd5 {[%clk 01:25:56]} {[%emt 00:01:12]} 7. Bf4 {[%clk 01:21:10]}
{[%emt 00:00:38]} g5 {[%clk 01:25:39]} {[%emt 00:00:48]} 8. Bc1 {[%clk
01:12:10]} {[%emt 00:09:31]} Bg7 {[%clk 01:24:22]} {[%emt 00:01:46]} 9. e3
{[%clk 01:07:13]} {[%emt 00:05:27]} O-O {[%clk 01:10:46]} {[%emt 00:14:05]} 10.
Be2 {[%clk 01:03:23]} {[%emt 00:04:21]} h6 {[%clk 01:08:32]} {[%emt 00:02:45]}
11. O-O {[%clk 00:56:13]} {[%emt 00:07:39]} f5 {[%clk 01:06:07]} {[%emt
00:02:56]} 12. Ne1 {[%clk 00:52:11]} {[%emt 00:04:31]} f4 {[%clk 01:01:18]}
{[%emt 00:05:20]} 13. exf4 {[%clk 00:47:01]} {[%emt 00:05:40]} gxf4 {[%clk
01:01:46]} {[%emt 00:00:02]} 14. Nd3 {[%clk 00:43:27]} {[%emt 00:04:03]} f3
{[%clk 00:55:31]} {[%emt 00:06:45]} 15. Bxf3 {[%clk 00:42:41]} {[%emt
00:01:16]} Nxd4 {[%clk 00:54:39]} {[%emt 00:01:22]} 16. Bh5 {[%clk 00:40:29]}
{[%emt 00:02:42]} Qd6 {[%clk 00:50:22]} {[%emt 00:04:47]} 17. Re1 {[%clk
00:32:27]} {[%emt 00:08:32]} Be6 {[%clk 00:40:26]} {[%emt 00:10:26]} 18. Be3
{[%clk 00:31:01]} {[%emt 00:01:56]} Nec6 {[%clk 00:37:09]} {[%emt 00:03:48]} 19.
Qd2 {[%clk 00:26:33]} {[%emt 00:04:58]} Bf5 {[%clk 00:35:50]} {[%emt 00:01:49]}
20. Bf4 {[%clk 00:22:54]} {[%emt 00:04:09]} Qd8 {[%clk 00:35:25]} {[%emt
00:00:55]} 21. Bxh6 {[%clk 00:11:08]} {[%emt 00:12:15]} Qh4 {[%clk 00:26:56]}
{[%emt 00:08:59]} 22. Bxg7 {[%clk 00:09:52]} {[%emt 00:01:47]} Kxg7 {[%clk
00:27:10]} {[%emt 00:00:15]} 23. Nf4 {[%clk 00:08:09]} {[%emt 00:02:13]} Bg4
{[%clk 00:23:48]} {[%emt 00:03:53]} 24. Re5 {[%clk 00:02:19]} {[%emt 00:06:18]}
Nxe5 {[%clk 00:18:46]} {[%emt 00:05:32]} 25. Qxd4 {[%clk 00:02:34]} {[%emt
00:00:16]} Qf6 {[%clk 00:19:07]} {[%emt 00:00:08]} 26. Bxg4 {[%clk 00:02:22]}
{[%emt 00:00:42]} Qxf4 {[%clk 00:19:24]} {[%emt 00:00:14]} 27. Qxf4 {[%clk
00:00:55]} {[%emt 00:01:56]} Rxf4 {[%clk 00:19:52]} {[%emt 00:00:02]} 28. Be2
{[%clk 00:00:52]} {[%emt 00:00:32]} c6 {[%clk 00:19:07]} {[%emt 00:01:16]} 29.
Rd1 {[%clk 00:00:53]} {[%emt 00:00:30]} Raf8 {[%clk 00:17:09]} {[%emt
00:02:28]} 30. f3 {[%clk 00:00:44]} {[%emt 00:00:39]} b5 {[%clk 00:16:29]}
{[%emt 00:01:10]} 31. Bf1 {[%clk 00:01:03]} {[%emt 00:00:10]} Nc4 {[%clk
00:14:12]} {[%emt 00:02:47]} 32. Ne2 {[%clk 00:01:09]} {[%emt 00:00:24]} R4f6
{[%clk 00:13:16]} {[%emt 00:01:26]} 33. b4 {[%clk 00:01:17]} {[%emt 00:00:22]}
a5 {[%clk 00:12:38]} {[%emt 00:01:08]} 34. bxa5 {[%clk 00:01:37]} {[%emt
00:00:10]} Ra8 {[%clk 00:12:43]} {[%emt 00:00:25]} 35. Nd4 {[%clk 00:00:37]}
{[%emt 00:01:29]} Rxa5 {[%clk 00:12:52]} {[%emt 00:00:21]} 36. Bxc4 {[%clk
00:00:45]} {[%emt 00:00:22]} bxc4 {[%clk 00:12:40]} {[%emt 00:00:42]} 37. Rd2
{[%clk 00:00:54]} {[%emt 00:00:20]} c5 {[%clk 00:12:33]} {[%emt 00:00:37]} 38.
Ne2 {[%clk 00:01:07]} {[%emt 00:00:16]} d4 {[%clk 00:12:55]} {[%emt 00:00:09]}
39. Ng3 {[%clk 00:01:09]} {[%emt 00:00:27]} c3 {[%clk 00:12:58]} {[%emt
00:00:28]} 40. Rc2 {[%clk 00:01:14]} {[%emt 00:00:25]} Rb6 {[%clk 00:12:26]}
{[%emt 00:01:02]} 0-1

[Event "SS Manhem Chess Week 2019 GM and IM tournaments"]
[Site "Molnlycke kulturhus, Biblioteksgatan 2, Molnlycke, Sweden"]
[Date "2019.08.11"]
[Round "2.7"]
[White "Hill, Alistair"]
[Black "Borsuk, Konstantin"]
[Result "0-1"]
[TimeControl "90 minutes for 40 moves + 30 minutes for the rest of the game + 30 seconds per move from move one."]
[BlackTitle "FM"]
[WhiteFideId "432407"]
[BlackFideId "14113406"]
[WhiteElo "2224"]
[BlackElo "2372"]

1. e4 {[%clk 01:30:09]} {[%emt 00:00:51]} e6 {[%clk 01:30:36]} {[%emt
00:00:25]} 2. d4 {[%clk 01:30:33]} {[%emt 00:00:06]} d5 {[%clk 01:31:00]}
{[%emt 00:00:05]} 3. Nd2 {[%clk 01:30:48]} {[%emt 00:00:16]} Nc6 {[%clk
01:27:08]} {[%emt 00:04:22]} 4. Ngf3 {[%clk 01:31:06]} {[%emt 00:00:11]} Nf6
{[%clk 01:27:27]} {[%emt 00:00:11]} 5. e5 {[%clk 01:31:13]} {[%emt 00:00:24]}
Nd7 {[%clk 01:27:47]} {[%emt 00:00:10]} 6. Be2 {[%clk 01:28:27]} {[%emt
00:03:16]} a5 {[%clk 01:12:08]} {[%emt 00:16:10]} 7. O-O {[%clk 01:24:54]}
{[%emt 00:04:02]} a4 {[%clk 01:11:50]} {[%emt 00:00:48]} 8. a3 {[%clk
01:15:07]} {[%emt 00:10:17]} Nb6 {[%clk 01:10:56]} {[%emt 00:01:24]} 9. c4
{[%clk 01:05:19]} {[%emt 00:10:18]} dxc4 {[%clk 01:00:13]} {[%emt 00:11:13]} 10.
Nxc4 {[%clk 01:05:43]} {[%emt 00:00:06]} Nd5 {[%clk 01:00:08]} {[%emt
00:00:34]} 11. Bg5 {[%clk 01:01:05]} {[%emt 00:05:08]} Nce7 {[%clk 00:52:50]}
{[%emt 00:07:48]} 12. Nfd2 {[%clk 00:44:56]} {[%emt 00:16:39]} h6 {[%clk
00:50:40]} {[%emt 00:02:40]} 13. Bh4 {[%clk 00:42:52]} {[%emt 00:02:34]} Nf4
{[%clk 00:25:51]} {[%emt 00:25:18]} 14. Ne4 {[%clk 00:42:27]} {[%emt 00:00:55]}
Qd5 {[%clk 00:24:43]} {[%emt 00:01:38]} 15. Ncd6+ {[%clk 00:28:37]} {[%emt
00:14:20]} cxd6 {[%clk 00:24:56]} {[%emt 00:00:18]} 16. Nxd6+ {[%clk 00:29:05]}
{[%emt 00:00:02]} Kd7 {[%clk 00:24:58]} {[%emt 00:00:28]} 17. Bf3 {[%clk
00:28:38]} {[%emt 00:00:57]} Qb3 {[%clk 00:20:44]} {[%emt 00:04:44]} 18. Qc1
{[%clk 00:25:07]} {[%emt 00:04:00]} Qxf3 {[%clk 00:19:03]} {[%emt 00:02:10]} 19.
gxf3 {[%clk 00:25:33]} {[%emt 00:00:05]} Ne2+ {[%clk 00:19:28]} {[%emt
00:00:05]} 20. Kh1 {[%clk 00:25:55]} {[%emt 00:00:08]} Nxc1 {[%clk 00:19:52]}
{[%emt 00:00:06]} 21. Raxc1 {[%clk 00:26:21]} {[%emt 00:00:05]} g5 {[%clk
00:17:57]} {[%emt 00:02:25]} 22. Bg3 {[%clk 00:26:14]} {[%emt 00:00:37]} Rh7
{[%clk 00:14:51]} {[%emt 00:03:36]} 23. Rc2 {[%clk 00:25:19]} {[%emt 00:01:25]}
Nd5 {[%clk 00:14:46]} {[%emt 00:00:35]} 24. Ne4 {[%clk 00:25:12]} {[%emt
00:00:37]} Be7 {[%clk 00:12:26]} {[%emt 00:02:49]} 25. Rfc1 {[%clk 00:25:29]}
{[%emt 00:00:12]} b6 {[%clk 00:12:09]} {[%emt 00:00:48]} 26. Nf6+ {[%clk
00:21:34]} {[%emt 00:04:25]} Bxf6 {[%clk 00:12:05]} {[%emt 00:00:34]} 27. exf6
{[%clk 00:22:00]} {[%emt 00:00:05]} Nxf6 {[%clk 00:09:08]} {[%emt 00:03:27]}
0-1